bitfinex/quotes_BTCUSD_20240611
["timestamp","ask_amount","ask_price","bid_price","bid_amount"]
[1718070849770,0.43295979,69006.0,68999.0,0.144929]
[1718070850231,0.434911,68997.0,68996.0,0.144935]
[1718070851131,0.434911,68997.0,68996.0,0.15362858]
[1718070854002,0.435771,68997.0,68996.0,0.15362858]
[1718070855945,0.435771,68997.0,68996.0,0.25362858]
[1718070856598,0.435771,68997.0,68996.0,0.39794851]
[1718070856857,0.435771,68997.0,68996.0,0.15362858]
[1718070857523,0.435771,68997.0,68996.0,0.25362858]
[1718070857758,0.385771,68997.0,68996.0,0.68781951]
[1718070858254,0.385771,68997.0,68996.0,0.29646202]
[1718070858475,0.385771,68997.0,68996.0,0.25362858]
[1718070859132,0.385771,68997.0,68996.0,0.15362858]
[1718070861799,0.53009093,68997.0,68996.0,0.15362858]
[1718070862685,0.53009093,68997.0,68996.0,0.144935]
[1718070863167,0.385771,68997.0,68996.0,0.15193323]
[1718070863384,0.38572293,68997.0,68996.0,0.15193323]
[1718070864723,0.53004286,68997.0,68996.0,0.15193323]
[1718070864969,0.53004286,68997.0,68991.0,0.144944]
[1718070864970,0.22,68995.0,68991.0,0.144944]
[1718070865198,0.07215996,68977.0,68962.0,0.43295979]
[1718070865418,0.38486293,68976.0,68963.0,0.43432793]
[1718070865668,0.38486293,68976.0,68975.0,0.14498]
[1718070866148,0.45702289,68976.0,68975.0,0.14498]
[1718070866362,0.45702289,68976.0,68954.0,0.01781713]
[1718070866363,0.22,68974.0,68969.0,0.14499]
[1718070866576,0.45702289,68976.0,68969.0,0.14499]
[1718070866577,0.1,68971.0,68969.0,0.14499]
[1718070866815,0.40486293,68970.0,68969.0,0.14499]
[1718070867051,0.83378286,68970.0,68962.0,0.145005]
[1718070867265,0.07215996,68967.0,68966.0,0.144997]
[1718070867482,0.38486293,68967.0,68957.0,0.00017456]
[1718070867729,0.52918286,68967.0,68966.0,0.144998]
[1718070868152,0.62918286,68967.0,68966.0,0.144998]
[1718070868392,0.84918286,68967.0,68966.0,0.144998]
[1718070868625,0.64918286,68967.0,68966.0,0.144998]
[1718070868861,0.62918286,68967.0,68966.0,0.144998]
[1718070869087,0.84918286,68967.0,68959.0,0.145012]
[1718070869335,0.07215996,68962.0,68961.0,0.145007]
[1718070869574,0.07215996,68962.0,68957.0,0.00017456]
[1718070869575,0.23986293,68962.0,68957.0,0.00017456]
[1718070869781,0.23986293,68962.0,68961.0,0.1]
[1718070869998,0.23940411,68962.0,68961.0,0.38932893]
[1718070870454,0.1,68988.0,68961.0,0.38932893]
[1718070870455,0.1,68988.0,68961.0,0.24431993]
[1718070870686,0.43295979,68979.0,68962.0,0.74384516]
[1718070870907,0.43497,68987.0,68966.0,0.289995]
[1718070871126,0.07215996,68981.0,68967.0,0.1]
[1718070871344,0.07215996,68981.0,68980.0,0.144969]
[1718070871573,0.290001,68980.0,68967.0,0.1]
[1718070871779,0.290001,68980.0,68979.0,0.144971]
[1718070872229,0.285001,68980.0,68979.0,0.15175762]
[1718070872866,0.42932093,68980.0,68979.0,0.15175762]
[1718070873087,0.42932093,68980.0,68979.0,0.144971]
[1718070873603,0.42932093,68980.0,68979.0,0.1516985]
[1718070873829,0.285001,68980.0,68979.0,0.1516985]
[1718070874272,0.42932093,68980.0,68979.0,0.1516985]
[1718070874696,0.48946902,68980.0,68969.0,0.144991]
[1718070874964,0.07215996,68970.0,68969.0,0.144991]
[1718070875190,0.1,68964.0,68963.0,0.145005]
[1718070875407,0.52932093,68964.0,68963.0,0.145005]
[1718070875620,0.52932093,68964.0,68963.0,0.00678924]
[1718070875851,0.52932093,68964.0,68957.0,0.00017456]
[1718070876070,0.14431993,68963.0,68957.0,0.00017456]
[1718070876277,0.285001,68962.0,68958.0,0.00680554]
[1718070876516,0.285001,68962.0,68961.0,0.145009]
[1718070877004,0.285001,68962.0,68961.0,0.15186319]
[1718070878628,0.255001,68962.0,68961.0,0.15186319]
[1718070878864,0.255001,68962.0,68961.0,0.29618312]
[1718070879111,0.10866,69002.0,68962.0,0.4781]
[1718070879336,0.17215996,68985.0,68963.0,0.1]
[1718070879591,0.07215996,68969.0,68963.0,0.1]
[1718070879803,0.434936,68968.0,68963.0,0.00679782]
[1718070880018,1.03715593,68968.0,68967.0,0.144996]
[1718070880451,1.03715593,68968.0,68962.0,0.145007]
[1718070880452,0.1,68963.0,68962.0,0.145007]
[1718070880658,0.89925593,68963.0,68962.0,0.145007]
[1718070880885,0.22,68958.0,68957.0,0.00017456]
[1718070881103,0.87141589,68958.0,68957.0,0.00017456]
[1718070885357,0.87044753,68958.0,68957.0,0.00017456]
[1718070888320,0.87044753,68958.0,68957.0,0.00112056]
[1718070890778,0.01903164,68944.0,68926.0,0.1]
[1718070891022,0.31903164,68938.0,68935.0,0.145063]
[1718070891261,0.14431993,68937.0,68935.0,0.145063]
[1718070891502,0.434936,68936.0,68935.0,0.145063]
[1718070893934,0.434936,68936.0,68935.0,0.638263]
[1718070894158,0.434936,68936.0,68935.0,0.928391]
[1718070895248,0.434936,68936.0,68935.0,1.17271093]
[1718070895679,0.434936,68936.0,68935.0,1.028391]
[1718070895894,0.434936,68936.0,68935.0,0.245063]
[1718070897687,0.434936,68936.0,68935.0,0.145063]
[1718070898329,0.57925593,68936.0,68935.0,0.145063]
[1718070898531,0.434936,68936.0,68935.0,0.145063]
[1718070899147,0.414936,68936.0,68935.0,0.145063]
[1718070899786,0.004936,68936.0,68935.0,0.145063]
[1718070899994,0.004936,68936.0,68935.0,0.245063]
[1718070900421,0.004936,68936.0,68935.0,0.535191]
[1718070901481,0.004936,68936.0,68935.0,0.245063]
[1718070902554,0.004936,68936.0,68935.0,0.535191]
[1718070902772,0.004936,68936.0,68935.0,1.43841093]
[1718070903010,0.004936,68936.0,68935.0,1.72853893]
[1718070903417,0.004936,68936.0,68935.0,1.7820897]
[1718070903850,0.004936,68936.0,68935.0,1.34764177]
[1718070904067,0.004936,68936.0,68935.0,1.4919617]
[1718070904324,0.004936,68936.0,68935.0,0.535191]
[1718070904983,0.004936,68936.0,68935.0,0.145063]
[1718070905199,0.82758757,68936.0,68935.0,0.145063]
[1718070905410,0.1,68930.0,68929.0,0.145075]
[1718070905627,0.17709596,68930.0,68929.0,0.145075]
[1718070906253,0.34044753,68930.0,68918.0,0.145099]
[1718070906458,0.34044753,68930.0,68921.0,0.145093]
[1718070906459,0.07215996,68922.0,68921.0,0.145093]
[1718070906666,0.07215996,68922.0,68914.0,0.145108]
[1718070906667,0.1,68915.0,68914.0,0.145108]
[1718070906903,0.17709596,68915.0,68914.0,0.145108]
[1718070907593,0.34044753,68915.0,68910.0,0.009449]
[1718070907794,0.32141589,68915.0,68910.0,0.009449]
[1718070908055,0.21903164,68911.0,68910.0,0.009449]
[1718070908420,0.82358757,68911.0,68910.0,0.009449]
[1718070909227,0.60455593,68911.0,68910.0,0.009449]
[1718070909473,0.004936,68911.0,68910.0,0.009449]
[1718070910668,0.104936,68911.0,68910.0,0.009449]
[1718070911141,0.50790033,68911.0,68910.0,0.009449]
[1718070911384,0.46828757,68911.0,68910.0,0.009449]
[1718070911606,0.21903164,68908.0,68902.0,0.009449]
[1718070911809,0.31903164,68903.0,68902.0,0.009449]
[1718070912090,0.31903164,68893.0,68887.0,0.145163]
[1718070912306,0.46335157,68893.0,68880.0,0.154628]
[1718070912521,0.46828757,68893.0,68866.0,0.00946]
[1718070912779,0.46828757,68893.0,68881.0,0.145177]
[1718070913206,0.46828757,68893.0,68882.0,0.145174]
[1718070913381,0.46828757,68893.0,68875.0,0.058057]
[1718070913382,0.21903164,68889.0,68875.0,0.058057]
[1718070913655,0.31903164,68879.0,68875.0,0.058057]
[1718070913861,0.31903164,68879.0,68852.0,0.02269683]
[1718070913862,0.21903164,68853.0,68852.0,0.02269683]
[1718070914109,1.17345157,68853.0,68852.0,0.02269683]
[1718070914345,0.1,68849.0,68838.0,0.0139982]
[1718070914590,0.14925593,68848.0,68838.0,0.0139982]
[1718070914820,0.1,68842.0,68838.0,0.0139982]
[1718070915039,0.21903164,68839.0,68838.0,0.0139982]
[1718070915297,0.1,68832.0,68823.0,0.01072955]
[1718070915516,0.1,68828.0,68823.0,0.01072955]
[1718070915724,0.71976764,68827.0,68823.0,0.01072955]
[1718070915954,0.79976764,68827.0,68823.0,0.01072955]
[1718070916613,0.79976764,68827.0,68810.0,0.015]
[1718070916614,0.21903164,68811.0,68810.0,0.015]
[1718070916860,0.39903164,68808.0,68804.0,0.18845581]
[1718070917071,0.46335157,68808.0,68804.0,0.18845581]
[1718070917285,0.74505593,68808.0,68804.0,0.18845581]
[1718070917527,0.54828757,68808.0,68804.0,0.18845581]
[1718070917744,0.24925593,68808.0,68804.0,0.18845581]
[1718070917974,0.92818757,68808.0,68804.0,0.18845581]
[1718070918216,0.004936,68808.0,68804.0,0.18845581]
[1718070918439,0.004936,68808.0,68807.0,0.16288016]
[1718070918690,0.4599,68831.0,68807.0,0.16186609]
[1718070918934,0.14431993,68831.0,68819.0,0.145308]
[1718070919173,0.58123,68830.0,68820.0,0.17215996]
[1718070919400,0.58123,68830.0,68827.0,0.07215996]
[1718070919690,0.58123,68830.0,68829.0,0.8286]
[1718070919893,0.1,68863.0,68845.0,0.145253]
[1718070921024,0.01,68857.0,68846.0,0.1]
[1718070921234,0.58095,68859.0,68846.0,0.1]
[1718070921235,0.68095,68856.0,68855.0,0.145231]
[1718070921434,0.68095,68856.0,68846.0,0.1]
[1718070921655,0.01903164,68854.0,68849.0,0.145244]
[1718070921867,0.68095,68856.0,68846.0,0.1]
[1718070922088,0.07215996,68850.0,68831.0,0.43295979]
[1718070922310,0.58095,68849.0,68832.0,0.3327]
[1718070922516,0.07215996,68848.0,68847.0,0.145249]
[1718070922718,0.07215996,68848.0,68832.0,0.3327]
[1718070922719,0.1,68843.0,68833.0,0.1]
[1718070922903,0.58095,68842.0,68839.0,0.145264]
[1718070923106,0.58095,68842.0,68841.0,0.145262]
[1718070923391,0.58095,68842.0,68841.0,0.245262]
[1718070924101,0.58095,68842.0,68841.0,0.25397571]
[1718070925472,0.58095,68842.0,68841.0,0.39829564]
[1718070925691,0.1,68867.0,68858.0,0.145224]
[1718070925692,0.1,68863.0,68858.0,0.145224]
[1718070925902,0.43295979,68861.0,68858.0,0.145224]
[1718070926154,0.79991164,68862.0,68859.0,0.15388472]
[1718070926344,0.1,68854.0,68851.0,0.145239]
[1718070926549,0.0911916,68852.0,68845.0,0.145252]
[1718070926767,0.31903164,68846.0,68845.0,0.145252]
[1718070927015,0.68088,68846.0,68845.0,0.145252]
[1718070927214,0.58088,68846.0,68845.0,0.145252]
[1718070927480,0.1,68842.0,68837.0,0.145269]
[1718070927711,0.14792021,68841.0,68839.0,0.763498]
[1718070927922,0.1,68876.0,68841.0,0.3277]
[1718070928142,0.14431993,68875.0,68870.0,0.1452]
[1718070928551,0.58078,68874.0,68870.0,0.1452]
[1718070929030,0.07215996,68873.0,68870.0,0.1452]
[1718070929248,0.58078,68872.0,68870.0,0.1452]
[1718070929468,0.58078,68872.0,68864.0,0.1]
[1718070929469,0.1,68865.0,68864.0,0.1]
[1718070929678,0.82509993,68865.0,68864.0,0.1]
[1718070929901,0.84413157,68865.0,68864.0,0.1]
[1718070930178,0.82509993,68865.0,68864.0,0.1]
[1718070930466,0.58078,68865.0,68864.0,0.1]
[1718070930712,0.72509993,68865.0,68864.0,0.1]
[1718070931594,0.94413157,68865.0,68864.0,0.1]
[1718070931970,0.74413157,68865.0,68864.0,0.1]
[1718070932175,0.1,68858.0,68844.0,0.4729]
[1718070932378,0.21903164,68860.0,68839.0,0.01187134]
[1718070932379,0.1,68851.0,68850.0,0.145241]
[1718070932578,0.82509993,68851.0,68850.0,0.145241]
[1718070933014,0.82509993,68851.0,68841.0,0.01733704]
[1718070933015,0.82509993,68851.0,68845.0,0.145253]
[1718070933244,0.1,68844.0,68839.0,0.01187134]
[1718070933447,0.72509993,68843.0,68839.0,0.01187134]
[1718070934181,0.21903164,68840.0,68839.0,0.01187134]
[1718070934384,0.72509993,68840.0,68839.0,0.01187134]
[1718070934575,0.72509993,68840.0,68800.0,0.10054]
[1718070934576,0.1,68836.0,68800.0,0.10054]
[1718070934751,0.07215996,68814.0,68807.0,0.16754616]
[1718070934962,0.58804775,68813.0,68807.0,0.01754616]
[1718070935208,0.58078,68813.0,68807.0,0.01754616]
[1718070935372,0.31903164,68808.0,68807.0,0.01754616]
[1718070935577,0.58078,68808.0,68807.0,0.01754616]
[1718070935804,0.94413157,68808.0,68807.0,0.01754616]
[1718070935975,0.74413157,68808.0,68807.0,0.01754616]
[1718070936173,0.94413157,68808.0,68807.0,0.01754616]
[1718070936378,1.39653157,68808.0,68807.0,0.01754616]
[1718070936809,0.31903164,68802.0,68801.0,0.0001264]
[1718070936981,1.04413157,68802.0,68801.0,0.0001264]
[1718070938620,1.12413157,68802.0,68801.0,0.0001264]
[1718070938824,1.29973157,68802.0,68801.0,0.0001264]
[1718070939061,1.04413157,68802.0,68801.0,0.0001264]
[1718070939512,0.82509993,68802.0,68801.0,0.0001264]
[1718070939733,1.04413157,68802.0,68801.0,0.0001264]
[1718070939972,0.82509993,68802.0,68801.0,0.0001264]
[1718070940389,1.04413157,68802.0,68801.0,0.0001264]
[1718070943195,1.04413157,68802.0,68780.0,1.46622854]
[1718070943196,0.99823164,68801.0,68780.0,1.46622854]
[1718070943442,0.1,68794.0,68780.0,1.46622854]
[1718070943671,0.58078,68793.0,68780.0,1.46622854]
[1718070943872,0.14431993,68792.0,68780.0,1.46622854]
[1718070944096,0.58078,68791.0,68781.0,0.145387]
[1718070944350,0.14431993,68784.0,68780.0,1.46622854]
[1718070944573,0.58078,68783.0,68780.0,1.46622854]
[1718070945189,0.58078,68783.0,68782.0,0.3041]
[1718070946043,0.58078,68783.0,68782.0,0.549486]
[1718070946261,0.58078,68783.0,68782.0,1.010486]
[1718070946690,0.58078,68783.0,68782.0,1.15480593]
[1718070946916,0.58078,68783.0,68782.0,1.44557893]
[1718070946917,0.35573486,68783.0,68782.0,1.44557893]
[1718070947134,0.43295979,68809.0,68782.0,1.60429293]
[1718070947363,0.43295979,68809.0,68807.0,0.145333]
[1718070947364,0.27733,68808.0,68807.0,0.145333]
[1718070947589,0.27733,68808.0,68807.0,0.245333]
[1718070947798,0.27733,68808.0,68807.0,0.145333]
[1718070948013,0.27733,68808.0,68798.0,0.3041]
[1718070948235,0.53551153,68807.0,68799.0,0.1]
[1718070948454,0.27733,68806.0,68799.0,0.1]
[1718070948664,0.27733,68806.0,68798.0,0.3041]
[1718070948665,0.21903164,68804.0,68798.0,0.145352]
[1718070948874,0.1,68799.0,68792.0,0.145365]
[1718070949084,0.27733,68798.0,68793.0,0.145361]
[1718070949537,0.27733,68798.0,68795.0,0.145358]
[1718070949753,0.27733,68798.0,68796.0,0.145356]
[1718070950610,0.27369663,68798.0,68797.0,0.1]
[1718070951697,0.27369663,68798.0,68797.0,0.31647989]
[1718070951911,0.27369663,68798.0,68797.0,0.24431993]
[1718070952360,0.27369663,68798.0,68797.0,0.1]
[1718070952812,0.27369663,68798.0,68797.0,0.100946]
[1718070955902,0.27369663,68798.0,68797.0,0.24526593]
[1718070956113,0.27369663,68798.0,68797.0,0.31742589]
[1718070956323,0.27369663,68798.0,68797.0,0.000946]
[1718070956530,0.59272827,68798.0,68797.0,0.000946]
[1718070956735,0.37369663,68798.0,68797.0,0.000946]
[1718070957192,0.7370482,68798.0,68797.0,0.000946]
[1718070958049,1.52047334,68798.0,68797.0,0.000946]
[1718070958256,0.31903164,68781.0,68780.0,1.46622854]
[1718070958475,0.73687334,68781.0,68780.0,1.46622854]
[1718070960323,0.5178417,68781.0,68780.0,1.46622854]
[1718070960826,0.73687334,68781.0,68780.0,1.46622854]
[1718070961035,0.27352177,68781.0,68780.0,1.46622854]
[1718070961494,0.4178417,68781.0,68780.0,1.46622854]
[1718070961736,0.69056067,68781.0,68780.0,1.46622854]
[1718070962002,0.63687334,68781.0,68780.0,1.46622854]
[1718070962240,0.7876217,68781.0,68780.0,1.46622854]
[1718070962465,0.63687334,68781.0,68780.0,1.46622854]
[1718070962681,1.52257334,68781.0,68780.0,1.46622854]
[1718070962890,1.54557334,68781.0,68780.0,1.46622854]
[1718070963099,1.0003417,68781.0,68780.0,1.46622854]
[1718070963344,0.27352177,68781.0,68780.0,1.46622854]
[1718070963555,0.27352177,68781.0,68780.0,1.61161954]
[1718070963996,0.27352177,68781.0,68780.0,1.6837795]
[1718070964212,0.27352177,68781.0,68780.0,1.82809943]
[1718070964412,0.27352177,68781.0,68780.0,1.92809943]
[1718070964641,0.43295979,68808.0,68780.0,1.78270843]
[1718070964911,0.43295979,68808.0,68803.0,0.14534]
[1718070965154,0.58145,68807.0,68803.0,0.14534]
[1718070965780,0.58145,68807.0,68795.0,0.3041]
[1718070965999,0.58145,68807.0,68796.0,0.1]
[1718070966441,0.58145,68807.0,68805.0,0.145336]
[1718070967073,0.1,68797.0,68796.0,0.245357]
[1718070967302,0.58145,68797.0,68796.0,0.245357]
[1718070968370,0.58145,68797.0,68780.0,1.46622854]
[1718070968371,0.01903164,68782.0,68780.0,1.46622854]
[1718070968582,1.01696153,68781.0,68780.0,1.46622854]
[1718070969003,1.01696153,68781.0,68780.0,0.66279788]
[1718070969004,2.08813414,68781.0,68780.0,0.66279788]
[1718070969244,2.26352508,68781.0,68780.0,0.66279788]
[1718070969444,2.74244344,68781.0,68780.0,0.66279788]
[1718070969660,0.31903164,68773.0,68768.0,0.0139982]
[1718070969899,1.19557418,68773.0,68768.0,0.0139982]
[1718070970113,1.21857418,68773.0,68768.0,0.0139982]
[1718070970325,1.21857418,68773.0,68743.0,0.058163]
[1718070970326,0.1,68764.0,68743.0,0.058163]
[1718070970533,0.4711916,68755.0,68739.0,0.06870315]
[1718070970767,1.23646703,68755.0,68739.0,0.06870315]
[1718070970978,0.22903164,68751.0,68739.0,0.06870315]
[1718070971214,0.21903164,68740.0,68739.0,0.06870315]
[1718070971443,2.99600157,68740.0,68739.0,0.06870315]
[1718070971651,0.40903164,68731.0,68727.0,0.00948199]
[1718070971863,1.15780157,68731.0,68727.0,0.00948199]
[1718070972073,1.14780157,68731.0,68727.0,0.00948199]
[1718070972287,1.90410157,68731.0,68727.0,0.00948199]
[1718070972502,0.4544,68706.0,68700.0,3.24116052]
[1718070972744,0.72576993,68705.0,68700.0,3.24116052]
[1718070972955,0.14431993,68704.0,68700.0,3.24116052]
[1718070973178,0.58145,68703.0,68700.0,3.22616052]
[1718070973387,0.21903164,68720.0,68700.0,3.22616052]
[1718070973590,0.1,68703.0,68700.0,3.22616052]
[1718070973797,0.21903164,68701.0,68700.0,3.22616052]
[1718070974025,0.94558157,68701.0,68700.0,3.22616052]
[1718070974440,0.72654993,68701.0,68700.0,3.2339104]
[1718070975313,0.94558157,68701.0,68700.0,3.2339104]
[1718070975930,0.72654993,68701.0,68700.0,3.2339104]
[1718070976771,1.01774153,68701.0,68700.0,3.2339104]
[1718070976975,0.96858157,68701.0,68700.0,3.2339104]
[1718070977176,0.96858157,68701.0,68700.0,3.22616052]
[1718070977384,0.96858157,68701.0,68688.0,0.05725937]
[1718070977385,0.31903164,68689.0,68688.0,0.05725937]
[1718070977622,1.04558157,68689.0,68688.0,0.05725937]
[1718070977820,0.84558157,68689.0,68688.0,0.05725937]
[1718070978040,1.04558157,68689.0,68688.0,0.05725937]
[1718070978698,0.82654993,68689.0,68688.0,0.05725937]
[1718070978927,0.72654993,68689.0,68688.0,0.05725937]
[1718070979802,0.72654993,68689.0,68688.0,0.20284437]
[1718070980015,0.3541462,68689.0,68688.0,0.20284437]
[1718070980232,0.3541462,68689.0,68688.0,0.30284437]
[1718070980477,0.2,68694.0,68693.0,0.145575]
[1718070980679,0.7823,68694.0,68693.0,0.245575]
[1718070980895,0.7823,68694.0,68693.0,0.2524214]
[1718070981107,0.5823,68694.0,68693.0,0.2524214]
[1718070981321,0.5823,68694.0,68688.0,0.05725937]
[1718070981322,0.00903164,68689.0,68688.0,0.05725937]
[1718070981557,0.94565157,68689.0,68688.0,0.05725937]
[1718070981785,0.72661993,68689.0,68688.0,0.05725937]
[1718070982002,0.5823,68689.0,68688.0,0.20284437]
[1718070982495,0.5823,68689.0,68688.0,0.66024437]
[1718070982927,0.5823,68689.0,68688.0,0.8045643]
[1718070983142,0.5823,68689.0,68688.0,0.9045643]
[1718070983375,0.5823,68689.0,68688.0,0.76024437]
[1718070984023,1.10388157,68689.0,68688.0,0.06431078]
[1718070984242,1.04565157,68689.0,68688.0,0.05725937]
[1718070984698,0.84565157,68689.0,68688.0,0.05725937]
[1718070984904,0.82661993,68689.0,68688.0,0.05725937]
[1718070985545,0.82661993,68689.0,68688.0,0.05820537]
[1718070985754,0.82747993,68689.0,68688.0,0.05820537]
[1718070986164,0.32747993,68689.0,68688.0,0.05820537]
[1718070986381,0.42747993,68689.0,68688.0,0.05820537]
[1718070986601,0.64651157,68689.0,68688.0,0.05820537]
[1718070987027,0.42747993,68689.0,68688.0,0.05820537]
[1718070987242,0.64651157,68689.0,68688.0,0.05820537]
[1718070987655,0.79911157,68689.0,68688.0,0.05820537]
[1718070987881,0.79911157,68689.0,68686.0,0.00112078]
[1718070987882,0.29903164,68687.0,68686.0,0.00112078]
[1718070988122,0.31903164,68667.0,68666.0,24.023125]
[1718070988339,0.42661993,68667.0,68666.0,24.023125]
[1718070988581,0.1823,68667.0,68666.0,24.023125]
[1718070988808,0.1823,68667.0,68666.0,24.518225]
[1718070989512,0.15666406,68667.0,68666.0,24.518225]
[1718070989747,0.00086,68689.0,68687.0,0.145587]
[1718070989972,0.58234,68688.0,68687.0,0.145587]
[1718070990187,0.72665993,68688.0,68687.0,0.1]
[1718070990419,0.58234,68688.0,68687.0,0.1]
[1718070990661,0.58234,68688.0,68687.0,0.4089]
[1718070990896,0.58234,68688.0,68687.0,0.95385996]
[1718070991155,0.3062,68724.0,68687.0,0.95385996]
[1718070991156,0.1,68720.0,68710.0,0.145539]
[1718070991404,0.1,68720.0,68688.0,0.291171]
[1718070991405,0.3062,68733.0,68704.0,0.284389]
[1718070991635,0.1,68734.0,68701.0,0.07215996]
[1718070991636,0.43295979,68721.0,68715.0,0.3041]
[1718070991861,0.436576,68720.0,68719.0,0.14552]
[1718070992328,0.436576,68720.0,68719.0,0.00759248]
[1718070992547,0.436576,68720.0,68715.0,0.3041]
[1718070992770,0.436576,68720.0,68719.0,0.14552]
[1718070992978,0.436576,68720.0,68716.0,0.00822778]
[1718070993209,0.436576,68720.0,68719.0,0.15356526]
[1718070993428,0.436576,68720.0,68719.0,0.14552]
[1718070993660,0.68089593,68720.0,68719.0,0.10802684]
[1718070993874,0.89992757,68720.0,68719.0,0.00802684]
[1718070994093,0.89992757,68720.0,68705.0,0.4788]
[1718070994094,0.1,68711.0,68705.0,0.1]
[1718070994311,0.1,68711.0,68706.0,0.1]
[1718070994312,0.436576,68710.0,68706.0,0.1]
[1718070994526,0.21903164,68709.0,68706.0,0.10672256]
[1718070994749,0.436576,68708.0,68706.0,0.00672256]
[1718070994960,0.436576,68708.0,68702.0,0.145555]
[1718070995167,0.14431993,68707.0,68702.0,0.145555]
[1718070995374,0.436576,68706.0,68703.0,0.15228183]
[1718070996036,0.436576,68706.0,68704.0,0.14555]
[1718070996474,0.436576,68706.0,68705.0,0.00672499]
[1718070996690,0.436576,68706.0,68705.0,0.32320488]
[1718070997622,0.2,68735.0,68705.0,0.32320488]
[1718070997623,0.43295979,68724.0,68707.0,0.3315]
[1718070997833,0.43295979,68724.0,68720.0,0.3041]
[1718070998048,0.58206,68723.0,68717.0,0.145523]
[1718070998267,0.58206,68723.0,68721.0,0.00785895]
[1718070998484,0.58206,68723.0,68718.0,0.1]
[1718070998696,0.58206,68723.0,68721.0,0.145514]
[1718070999158,0.58206,68723.0,68722.0,0.00785653]
[1718070999642,0.58166488,68723.0,68722.0,0.00785653]
[1718071000076,0.58166488,68723.0,68722.0,0.10785653]
[1718071000291,0.58166488,68723.0,68722.0,0.71727646]
[1718071000529,0.43295979,68745.0,68723.0,0.291021]
[1718071000782,0.43295979,68745.0,68698.0,0.145563]
[1718071000783,0.14431993,68723.0,68698.0,0.145563]
[1718071000999,0.07215996,68703.0,68687.0,0.4651]
[1718071001207,0.58195,68702.0,68695.0,0.14557]
[1718071001415,0.58195,68702.0,68687.0,0.4651]
[1718071001630,0.58195,68702.0,68696.0,0.145568]
[1718071001848,0.58195,68702.0,68688.0,0.145585]
[1718071001849,0.1,68695.0,68688.0,0.145585]
[1718071002083,0.58195,68694.0,68675.0,0.4503]
[1718071002281,0.58195,68694.0,68668.0,0.3041]
[1718071002282,0.07215996,68693.0,68668.0,0.3192]
[1718071002498,0.72626993,68694.0,68668.0,0.3192]
[1718071002721,0.58195,68692.0,68668.0,0.3192]
[1718071002930,0.58195,68692.0,68682.0,0.145598]
[1718071004027,0.1,68688.0,68682.0,0.145598]
[1718071004237,0.01903164,68686.0,68682.0,0.145598]
[1718071004453,0.01903164,68679.0,68668.0,0.145627]
[1718071004665,0.58195,68678.0,68666.0,24.023125]
[1718071004882,0.58195,68678.0,68666.0,24.16744493]
[1718071005351,0.58195,68678.0,68672.0,0.145618]
[1718071005556,0.58195,68678.0,68666.0,24.16744493]
[1718071005798,0.58195,68678.0,68676.0,0.14561]
[1718071006277,0.58195,68678.0,68677.0,0.14431993]
[1718071006466,0.58195,68678.0,68676.0,0.14561]
[1718071006467,0.43295979,68677.0,68676.0,0.14561]
[1718071006667,0.58195,68678.0,68676.0,0.14561]
[1718071006668,0.58195,68678.0,68676.0,0.28992993]
[1718071006874,0.58195,68678.0,68677.0,0.62827989]
[1718071007287,0.58195,68678.0,68677.0,1.08167989]
[1718071007932,0.50485401,68678.0,68677.0,1.08167989]
[1718071008156,0.53295979,68721.0,68677.0,1.08167989]
[1718071008157,0.75199143,68721.0,68700.0,0.14556]
[1718071008388,0.53295979,68721.0,68700.0,0.72476]
[1718071008609,0.01903164,68718.0,68700.0,0.5792]
[1718071008815,0.1,68714.0,68701.0,0.1]
[1718071009457,0.1,68714.0,68701.0,0.08]
[1718071009750,0.58218,68713.0,68701.0,0.08]
[1718071010185,0.60121164,68713.0,68709.0,0.14554]
[1718071010396,0.58218,68713.0,68709.0,0.14554]
[1718071010809,0.01903164,68712.0,68709.0,0.14554]
[1718071011062,0.58218,68711.0,68709.0,0.14554]
[1718071013969,0.1,68694.0,68672.0,0.04274922]
[1718071014210,0.1,68687.0,68673.0,0.03123292]
[1718071014428,0.73377961,68686.0,68665.0,0.35321194]
[1718071014646,0.58218,68686.0,68665.0,0.35321194]
[1718071014847,0.58218,68686.0,68676.0,0.145609]
[1718071015287,0.60121164,68686.0,68676.0,0.145609]
[1718071015493,0.01903164,68685.0,68676.0,0.145609]
[1718071015700,0.58218,68684.0,68676.0,0.145609]
[1718071016401,0.58218,68684.0,68665.0,0.35321194]
[1718071016607,0.58218,68684.0,68677.0,0.15284112]
[1718071016805,0.43295979,68683.0,68677.0,0.145608]
[1718071016977,0.1,68679.0,68672.0,0.145619]
[1718071017180,0.58218,68678.0,68672.0,0.145619]
[1718071017408,0.58218,68678.0,68665.0,0.35321194]
[1718071017936,0.14431993,68677.0,68665.0,0.35321194]
[1718071018147,0.58218,68676.0,68665.0,0.35321194]
[1718071018358,0.4751,68672.0,68665.0,0.35321194]
[1718071018587,0.1,68670.0,68665.0,0.35321194]
[1718071018801,0.72649993,68669.0,68665.0,0.35321194]
[1718071019001,0.58218,68669.0,68665.0,0.35321194]
[1718071020293,0.58218,68669.0,68667.0,0.145629]
[1718071020502,0.58218,68669.0,68668.0,0.24431993]
[1718071020944,0.58218,68669.0,68667.0,0.145629]
[1718071021164,0.14431993,68668.0,68665.0,0.35321194]
[1718071021376,0.58218,68667.0,68665.0,0.35321194]
[1718071022008,0.58218,68667.0,68665.0,0.49884494]
[1718071022435,0.72649993,68667.0,68665.0,0.35321194]
[1718071022874,0.58218,68667.0,68665.0,0.35321194]
[1718071023076,0.58218,68667.0,68665.0,0.49884594]
[1718071023288,0.58218,68667.0,68665.0,0.35321194]
[1718071023289,1.54493157,68667.0,68665.0,0.35321194]
[1718071024231,1.5806975,68667.0,68665.0,0.35321194]
[1718071024431,1.7332975,68667.0,68665.0,0.35321194]
[1718071024632,1.69753157,68667.0,68665.0,0.35321194]
[1718071024832,1.73053157,68667.0,68666.0,15.68054653]
[1718071025045,1.8748515,68667.0,68666.0,12.03624653]
[1718071025244,1.69753157,68667.0,68666.0,10.53634653]
[1718071025481,1.72053157,68667.0,68666.0,10.53634653]
[1718071025677,1.73053157,68667.0,68666.0,10.53634653]
[1718071025881,1.72053157,68667.0,68666.0,10.53134653]